[Event "45th FIDE Olympiad 2024"]
[Site "Budapest"]
[Date "2024.09.12"]
[Round "2.139"]
[White "Miranda Mesa, Elier"]
[Black "Levitan, Caleb Levi"]
[Result "1-0"]
[ECO "C74"]
[WhiteElo "2512"]
[BlackElo "2193"]
[Annotator "TA"]
[PlyCount "83"]
[EventDate "2024.09.05"]
[EventType "team-tourn"]
[EventCountry "HUN"]
[SourceTitle "playchess.com"]
[Source "ChessBase"]
[SourceQuality "1"]
[WhiteTeam "Cuba"]
[BlackTeam "South Africa"]
[WhiteTeamCountry "CUB"]
[BlackTeamCountry "RSA"]
[TimeControl "40/5400+30:1800+30"]

{[%evp 24,83,21,9,11,17,8,14,9,21,22,0,0,0,0,0,21,20,29,0,42,39,27,5,28,0,0,0,0,0,0,-3,0,0,0,0,0,0,17,22,24,10,125,116,100,103,145,145,298,317,348,322,315,325,331,308,29979,29980,29979,29980,29976,29973]} 1. e4 e5 2. Nf3 Nc6 3. Bb5 a6 4. Ba4 d6 5. c3 f5 6. exf5 Bxf5 7. O-O Bd3 8. Re1 Be7 9. Bc2 Bxc2 10. Qxc2 Nf6 11. d4 e4 12. Ng5 d5 13. f3 {[%cal Rf3e4]} h6 $1 (13... exf3 14. Ne6 Qd7 15. Bf4 $15) 14. Nh3 {[%cal Rf3e4]} O-O {[%cal Bh8f8,Bf8f7,Bf7e7][%mdl 32]} 15. Nd2 {[%cal Bb1d2,Bd2f3,Bf3e5][%mdl 32]} exf3 {The position is equal.} 16. Nxf3 {[%cal Oc1h6]} Rf7 17. Nf2 Bd6 18. Ne5 Re7 19. Bf4 Nh5 20. Nxc6 bxc6 21. Bxd6 Qxd6 22. Rxe7 Qxe7 23. Ng4 Nf6 24. Ne5 c5 25. h3 Re8 26. Re1 Qd6 27. Rf1 cxd4 28. cxd4 Qb6 29. Qf2 Qe6 {Prevents Nd7.} 30. b4 Rf8 31. a3 {[%cal Ba2a3,Ba3a4,Ba4a5][%mdl 32]} Nd7 32. Nf3 {[%cal Be5f3,Bf3g5,Bg5e6][%mdl 32]} Nb6 {[#]} (32... Qd6 $11) 33. Ng5 $1 $16 {[%mdl 512]} Rxf2 34. Nxe6 Rxf1+ 35. Kxf1 {[%mdl 4096] Endgame. KN-KN} Nc4 $2 {Black cannot hold the game after this.} (35... c6 $16 36. Nd8 Kh7 37. Nxc6 Kg6) 36. a4 $1 $18 ({Worse is} 36. Nxc7 Nxa3 37. Nxd5 Nc2 $11) 36... c6 {[#]} 37. a5 $1 Ne3+ {[#]} 38. Ke2 $1 Nc2 39. Kd2 Nxb4 (39... Na3 $18 40. Nc7 Kf7 41. Nxa6 Ke7) 40. Nc5 {White mates.} Kf7 41. Kc3 Na2+ 42. Kb2 {Weighted Error Value: White=0.04 (flawless) /Black=0.40.  Mistake:       	---       	Black=3      Inaccurate:     	White=2     	Black=2      OK:         	White=7     	Black=11     Best:        	White=2     	Black=1      Strong:       	White=3     	---        Brilliant:      	White=1     	---} 1-0

[Event "45th FIDE Olympiad 2024"]
[Site "Budapest"]
[Date "2024.09.12"]
[Round "2.140"]
[White "Mhango, Banele"]
[Black "Almeida Quintana, Omar"]
[Result "0-1"]
[ECO "B06"]
[WhiteElo "2261"]
[BlackElo "2492"]
[Annotator "TA"]
[PlyCount "94"]
[EventDate "2024.09.05"]
[EventType "team-tourn"]
[EventCountry "HUN"]
[SourceTitle "playchess.com"]
[Source "ChessBase"]
[SourceQuality "1"]
[WhiteTeam "South Africa"]
[BlackTeam "Cuba"]
[WhiteTeamCountry "RSA"]
[BlackTeamCountry "CUB"]
[TimeControl "40/5400+30:1800+30"]

{[%evp 12,94,41,47,55,-18,15,-2,0,-35,-39,-45,-43,-77,-62,-100,-97,-75,-60,-52,-41,-89,-88,-90,-90,-139,-124,-124,-89,-100,-38,-41,-50,-35,-16,-22,-27,-27,-37,-18,-23,-22,-18,-22,-7,-13,-8,-9,-2,0,0,-14,0,0,0,0,0,0,0,-26,-25,-75,-45,-43,-44,-62,-26,-82,-82,-168,-70,-160,-159,-184,-174,-855,-850,-855,-857,-29980,-29983,-29983,-29984,-29998,-29999]} 1. d4 g6 2. e4 Bg7 3. Nc3 d6 4. f4 a6 5. Nf3 b5 6. Bd3 Nd7 7. e5 c5 8. exd6 ({Better is} 8. Be3 $14) 8... exd6 9. O-O Ne7 $1 {[%cal Bg8e7,Be7d5,Bd5b4][%mdl 32] The position is equal.} 10. dxc5 Nxc5 11. Ne4 O-O 12. c3 Bb7 $36 {[%mdl 2048] Black is pushing.} 13. Ng3 Qb6 14. Kh1 Nd5 15. f5 Rae8 16. Bc2 (16. a3 $15) 16... b4 $1 $17 17. cxb4 Nxb4 18. Ng5 (18. Bb1 $142) 18... Qc6 {[%csl Gb7][%cal Rc6g2]} 19. Nf3 Qd5 20. Bg5 h6 {Black is much more active.} (20... Nxa2 21. f6 Bh8 22. Bd2 $14) (20... Nxc2 $17 21. Qxc2 Ne4) 21. Bd2 $15 Nxc2 (21... Nxa2 $2 22. Bb1 $18 (22. fxg6 fxg6 23. Bb1 Nb4 $18) (22. fxg6 fxg6 23. Bxg6 Nb3 $18)) 22. Qxc2 Qd3 23. Qxd3 Nxd3 24. f6 Bxf6 {And now ...Bg7 would win. This pair of bishops is nice.} 25. Bxh6 Bg7 26. Bxg7 Kxg7 27. b3 Ne5 28. Nd4 Ng4 29. Kg1 Ne3 30. Rf2 f5 31. Rc1 Rf7 32. Nf1 Ng4 33. Rd2 Rfe7 34. h3 Nf6 35. Rdc2 Nd5 36. Nc6 (36. Nd2 $11) 36... Re2 37. Nd4 Rxc2 38. Rxc2 Kf6 39. Rd2 (39. Ne2 $11 {keeps the balance.}) 39... Nf4 $17 40. Nh2 {[#]} (40. Ng3 $17 {was worth a try.}) 40... g5 (40... Bxg2 $1 $19 41. Ndf3 Bxh3 (41... Nxh3+ $2 42. Kxg2 Nf4+ 43. Kg3 $18) 42. Rxd6+ Re6 43. Rxe6+ Nxe6) 41. Ndf3 {[#]} ({White should play} 41. Nhf3 $15) 41... Re2 $1 {White must now prevent ...Rxd2.} 42. Rxd6+ Ke7 43. Rh6 $2 (43. Rd2 g4 44. hxg4 fxg4 45. Rxe2+ Nxe2+ 46. Kf2 gxf3 47. Nxf3) 43... Rxg2+ $19 ({Inferior is} 43... Rxa2 44. Rh7+ (44. Nxg5 $2 {too greedy.} Rxg2+ 45. Kf1 Rxh2 $19) 44... Kf6 45. Rxb7 $11) 44. Kf1 Be4 {aiming for ...Bd3+.} ({Not} 44... Rxa2 45. Rh7+ Kd6 46. Rxb7 $11) 45. a3 Bd3+ {Black mates.} 46. Ke1 Re2+ 47. Kd1 Bc2+ {Weighted Error Value: White=0.43/Black=0.10 (very precise) .  Mistake:       	White=8     	Black=2      Inaccurate:     	White=4     	Black=3      OK:         	White=17    	Black=12     Best:        	White=2     	Black=2      Strong:       	---       	Black=3} 0-1

[Event "45th FIDE Olympiad 2024"]
[Site "Budapest"]
[Date "2024.09.12"]
[Round "2.141"]
[White "Arab, Adlane"]
[Black "Kadric, Denis"]
[Result "1/2-1/2"]
[ECO "E61"]
[WhiteElo "2477"]
[BlackElo "2553"]
[Annotator "TA"]
[PlyCount "82"]
[EventDate "2024.09.05"]
[EventType "team-tourn"]
[EventCountry "HUN"]
[SourceTitle "playchess.com"]
[Source "ChessBase"]
[SourceQuality "1"]
[WhiteTeam "Algeria"]
[BlackTeam "Montenegro"]
[WhiteTeamCountry "ALG"]
[BlackTeamCountry "MNE"]
[TimeControl "40/5400+30:1800+30"]

{[%evp 9,82,0,0,0,0,0,0,0,8,0,8,-12,-12,-18,-9,-18,-11,-33,-9,-14,-6,-11,30,8,15,-10,-9,-4,-7,-20,-20,-28,0,-6,-6,-16,-20,-20,0,-5,-11,-10,-3,-5,0,0,-7,-12,-18,-12,-13,-20,0,0,0,0,0,0,0,-11,0,-31,-30,-60,-39,-39,-39,-56,-56,-57,-8,-6,0,0,0]} 1. d4 d6 2. Nf3 Nf6 3. c4 g6 4. Nc3 Bg7 5. Bf4 Bf5 6. e3 Nh5 7. Bg5 h6 8. Bh4 g5 9. Bg3 c5 10. dxc5 Nxg3 11. hxg3 {[#] Black must now prevent cxd6.} dxc5 12. Qxd8+ Kxd8 13. O-O-O+ Nd7 {[%cal Bb8d7,Bd7e5,Be5g4][%mdl 32]} 14. Bd3 Bg4 15. Kc2 e6 16. Rd2 Ke7 17. Nh2 {A dynamic duo of knights.} Ne5 18. Nxg4 Nxg4 19. Ne4 {[%cal Od3e2]} f5 20. Be2 Ne5 21. Nd6 Rab8 22. Rhd1 Rhd8 23. a3 a6 24. b4 cxb4 25. axb4 Nc6 26. Kb3 b6 27. f4 {Prevents Be5} g4 28. b5 axb5 29. cxb5 Na5+ 30. Kb4 h5 31. Nc4 Rxd2 32. Rxd2 {[%cal Oc4b6]} Nxc4 33. Bxc4 $11 {[%mdl 4096] Endgame. KRB-KRB} Bf8 34. Kc3 Kf6 35. Re2 Bd6 36. e4 {[#] e5+ would now be deadly.} fxe4 37. Rxe4 e5 38. Re3 Rd8 (38... exf4 $2 {too greedy.} 39. Re6+ Kg5 40. Rxd6 $18) 39. Rd3 exf4 (39... Kf5 $15) 40. gxf4 h4 41. Rd5 Bc7 {Weighted Error Value: White=0.06 (flawless) /Black=0.07 (flawless) .  Mistake:       	---       	Black=1      Inaccurate:     	White=2     	Black=2      OK:         	White=13    	Black=17     Best:        	White=1     	Black=1} 1/2-1/2

[Event "45th FIDE Olympiad 2024"]
[Site "Budapest"]
[Date "2024.09.12"]
[Round "2.142"]
[White "Petrov, Nikita"]
[Black "Djabri, Massinas"]
[Result "1/2-1/2"]
[ECO "D03"]
[WhiteElo "2574"]
[BlackElo "2280"]
[Annotator "TA"]
[PlyCount "149"]
[EventDate "2024.09.05"]
[EventType "team-tourn"]
[EventCountry "HUN"]
[SourceTitle "playchess.com"]
[Source "ChessBase"]
[SourceQuality "1"]
[WhiteTeam "Montenegro"]
[BlackTeam "Algeria"]
[WhiteTeamCountry "MNE"]
[BlackTeamCountry "ALG"]
[TimeControl "40/5400+30:1800+30"]

{[%evp 60,149,0,0,0,0,0,0,0,0,0,0,0,0,0,0,0,0,0,0,0,0,0,0,0,0,0,0,0,0,0,0,0,0,0,0,0,0,0,0,0,0,0,0,0,0,0,0,26,26,26,26,26,26,26,26,26,0,26,0,0,0,0,0,0,0,0,0,0,0,0,0,0,0,0,0,0,0,0,0,0,0,0,0,0,0,0,0,0,0,0,0]} 1. d4 Nf6 2. Nf3 e6 3. Bg5 d5 4. Nbd2 Be7 5. e3 h6 6. Bh4 Nbd7 {is the legacy move (6...c5).} 7. Bd3 b6 8. O-O {D03: 1 d4 d5 2 Nf3 Nf6 3 Bg5, including Torre Attack with early ...d5.} Bb7 9. c4 O-O 10. cxd5 exd5 11. Rc1 c5 12. Bf5 Ne4 $146 ({Predecessor:} 12... g6 13. Bxd7 Nxd7 14. Bxe7 Qxe7 15. Re1 Rfc8 16. dxc5 bxc5 17. Qb3 Rc7 18. Qa3 a5 {½-½ Epishin,V (2563)-Schroeder,J (2432) Hofheim Spring op-A 3rd 2015 (8)}) 13. Bxe7 Qxe7 14. Bxd7 Qxd7 15. dxc5 Nxc5 16. Nb3 Rac8 17. Re1 Rfe8 18. Nbd4 a5 19. Rc3 b5 20. Qc2 Ne4 21. Rxc8 Rxc8 22. Qb3 b4 23. a3 Nc5 24. Qd1 Ba6 25. Qb1 Bd3 26. Ne5 Bxb1 27. Nxd7 Nxd7 28. Rxb1 bxa3 29. bxa3 Rc3 30. Nb5 Rc2 31. h3 Ra2 32. Rc1 Ne5 33. Rd1 Nc4 34. Rd3 g6 35. Rxd5 Nxa3 36. Nxa3 Rxa3 37. g4 Ra1+ 38. Kg2 a4 39. Ra5 a3 40. Ra7 a2 41. Kf3 $1 Kg7 42. h4 Kf6 43. Ra6+ Kg7 44. Kg2 Kg8 45. h5 gxh5 46. gxh5 Kg7 47. Kf3 $1 Rh1 48. Rxa2 Rxh5 49. e4 Rh3+ 50. Kg4 Rh2 51. Kg3 Rh1 52. f4 Rg1+ 53. Kf3 Rf1+ 54. Kg4 Rg1+ 55. Kf5 Rg6 56. e5 Rg1 57. Re2 Rg6 58. Ke4 Rg4 59. Kf3 h5 60. f5 Ra4 61. Rg2+ Kf8 62. Rb2 Ke7 63. Rb7+ Ke8 64. Rb1 Ke7 65. Re1 f6 66. e6 Ra5 67. Kf4 Ra4+ 68. Re4 Ra1 69. Re2 Ra4+ 70. Re4 Ra1 71. Rb4 Rf1+ 72. Ke4 Re1+ 73. Kd4 Re5 74. Rb7+ Ke8 75. Rb8+ 1/2-1/2

[Event "45th FIDE Olympiad 2024"]
[Site "Budapest"]
[Date "2024.09.12"]
[Round "2.143"]
[White "Brahami, Lamine"]
[Black "Djukic, Nikola"]
[Result "0-1"]
[ECO "E94"]
[WhiteElo "2188"]
[BlackElo "2515"]
[Annotator "TA"]
[PlyCount "102"]
[EventDate "2024.09.05"]
[EventType "team-tourn"]
[EventCountry "HUN"]
[SourceTitle "playchess.com"]
[Source "ChessBase"]
[SourceQuality "1"]
[WhiteTeam "Algeria"]
[BlackTeam "Montenegro"]
[WhiteTeamCountry "ALG"]
[BlackTeamCountry "MNE"]
[TimeControl "40/5400+30:1800+30"]

{[%evp 18,102,73,60,62,41,33,33,37,30,30,14,89,84,91,88,90,27,47,38,42,34,35,0,0,0,21,8,16,0,0,0,0,0,0,0,0,0,12,0,42,42,27,0,26,30,38,-117,-63,-75,-63,-63,-65,-60,-60,-58,-61,-67,-61,-72,-70,-111,-20,-102,-89,-80,8,-195,-193,-187,-192,-244,-246,-326,-335,-277,-229,-456,-376,-377,-279,-282,-281,-433,-433,-743,-742]} 1. d4 Nf6 2. c4 g6 3. Nc3 Bg7 4. e4 d6 5. Nf3 O-O 6. Be2 Nbd7 7. O-O e5 8. Be3 Qe7 9. Qc2 c6 10. Rad1 h6 11. h3 {Dodges Ng4} exd4 12. Bxd4 b6 {White is slightly better.} 13. Rfe1 Bb7 14. Qd2 Nc5 (14... Rfe8 $11 {remains equal.}) 15. Bxc5 $16 dxc5 16. e5 Nh7 {[%cal Oa8d8,Bf6h7,Bh7f8,Bf8e6,Be6c7][%mdl 32]} 17. Qd7 ({Better is} 17. Ne4 $16) 17... Rfe8 18. Ne4 $1 Nf8 19. Qxe7 Rxe7 20. Nd6 Ba6 {[%cal Of8d7]} 21. Bf1 Rd7 22. Rd3 Rad8 {[%cal Oa6c4]} 23. Red1 (23. Ra3 $5 Bc8 $8 24. h4 $14) 23... Ne6 24. Ra3 Nc7 25. Re1 f6 26. Ne4 fxe5 27. Be2 g5 28. h4 g4 29. Nh2 Rd4 {[%csl LRc4,LRe4]} 30. Bxg4 Bxc4 (30... Rxc4 $5 31. Rxa6 Rxe4 32. Rxe4 Nxa6 $16) 31. Rxa7 Nb5 32. Ra4 (32. Rb7 $14 {keeps the upper hand.}) 32... Bd5 (32... Bd3 $17 33. Rxd4 exd4 (33... Nxd4 34. Nf3 $17) 34. Be6+ Kf8) 33. Rxd4 $15 exd4 34. a4 Nc7 {aiming for ...Re8.} 35. a5 $1 bxa5 {[#] Threatens to win with ...Re8.} 36. Nxc5 Rb8 37. Re2 Rb5 38. Rc2 Bf8 {A strong pair of Bishops.} 39. Nd7 Be7 (39... d3 $17 40. Rd2 Bg7) 40. Nf3 (40. Be2 $1 $11 Rb3 41. Ne5) 40... d3 $36 {[%mdl 2048] Keeping White busy.} 41. Rd2 Be4 {Black is more active.} (41... h5 $17 42. Bf5 Bxf3 43. Bxd3 Bd5 (43... Rd5 44. Nb6 $15) 44. Bxb5 Nxb5 (44... cxb5 45. Nb6 $17)) 42. Nde5 {White does not recover from this.} (42. Nd4 $11 {and White stays safe.} Rb4 43. Nf5) 42... Bb4 $19 43. Rd1 d2 {[#] Hoping for ...Bc2.} 44. Nc4 (44. Kf1 $142) 44... Bc2 45. Rxd2 Bxd2 46. Nfxd2 Bd3 47. Bd7 $2 (47. b3 {was worth a try.}) 47... Bxc4 48. Nxc4 Rc5 49. Ne3 Kf8 50. g3 (50. Kf1 $142) 50... Nd5 51. Nf5 (51. Nxd5 $142 cxd5 52. Ba4) 51... Nb6 {Weighted Error Value: White=0.46/Black=0.21 (precise) .  Loses game:     	White=1     	---        Mistake:       	White=7     	Black=4      Inaccurate:     	White=4     	Black=2      OK:         	White=13    	Black=15     Best:        	White=2     	Black=4      Strong:       	White=2     	---} 0-1

[Event "45th FIDE Olympiad 2024"]
[Site "Budapest"]
[Date "2024.09.12"]
[Round "2.144"]
[White "Draskovic, Luka"]
[Black "Bengherabi, Khalil"]
[Result "1-0"]
[ECO "B23"]
[WhiteElo "2497"]
[BlackElo "2076"]
[Annotator "TA"]
[PlyCount "119"]
[EventDate "2024.09.05"]
[EventType "team-tourn"]
[EventCountry "HUN"]
[SourceTitle "playchess.com"]
[Source "ChessBase"]
[SourceQuality "1"]
[WhiteTeam "Montenegro"]
[BlackTeam "Algeria"]
[WhiteTeamCountry "MNE"]
[BlackTeamCountry "ALG"]
[TimeControl "40/5400+30:1800+30"]

{[%evp 9,119,0,13,12,9,0,4,-6,50,39,43,50,47,29,29,30,51,35,25,15,22,5,13,5,26,0,0,0,0,0,0,-2,0,0,0,0,0,17,14,14,16,10,64,66,89,89,130,125,143,133,150,152,154,146,162,160,163,150,220,188,211,238,202,216,194,116,119,116,116,123,123,123,116,116,192,96,195,195,382,382,366,343,689,687,736,677,5980,3870,11216,5969,6729,8844,11261,11767,4710,6856,6227,4786,29970,29971,29971,29973,29976,29977,29978,29979,29979,29980,29979,29980,29989,29990]} 1. e4 c5 2. Nc3 Nc6 3. Bb5 Nd4 4. Bc4 e6 5. Nge2 Ne7 6. O-O g6 7. Nxd4 cxd4 8. Nb5 {[%cal Rb5d6] [#] The position is equal.} Nc6 (8... d5 $1 $11 9. exd5 exd5) 9. c3 $14 Qb6 10. d3 {Bf4 is the strong threat.} a6 11. Nxd4 Nxd4 12. cxd4 Qxd4 13. Rb1 Bg7 14. Be3 Qd6 15. d4 b5 16. Bb3 Bb7 17. d5 exd5 18. Bd4 O-O 19. Bxg7 Kxg7 20. Qd4+ f6 21. Rfd1 {[%cal Rb3d5]} Rfe8 22. f3 {[%cal Rb3d5]} Rac8 23. Bxd5 Bxd5 24. Qxd5 Qxd5 25. Rxd5 $11 {[%mdl 4096] Endgame. KRR-KRR} Re7 ({Black should play} 25... Rc2 $11) 26. Rbd1 $14 Rc2 27. R1d2 Rc7 28. Rd6 Ra7 29. Kf2 {White is more active.} Kf7 30. g4 a5 31. h4 {[%cal Bh2h4,Bh4g5][%mdl 32]} Rb7 32. g5 fxg5 33. hxg5 Re5 (33... Kg7 $16 34. Ke3 a4) 34. Rxd7+ $18 Rxd7 35. Rxd7+ {KR-KR} Ke6 36. Rxh7 {[#] Threatens to win with Ra7.} Rxg5 37. Rc7 {Prevents Rc5.} ({Better is} 37. f4 $18 Rc5 38. Rg7 Rc2+ 39. Kf3 Rxb2 40. Rxg6+ Kd7 41. f5) 37... Rh5 $16 38. Rc6+ Kf7 39. Kg2 {Dodges Rh2+} Rg5+ 40. Kf1 Rh5 41. Rc2 {Dodges Rh2} Ke6 (41... Rh1+ $16 42. Kg2 Rb1) 42. Ke2 ({White should try} 42. Kg2 $18) 42... Kd6 (42... Rh3 $16 {might work better.}) 43. Ke3 $18 Rg5 $2 (43... g5 {keeps fighting.} 44. b3 Rh1) 44. Kf4 Rg1 45. Rd2+ Kc6 $2 (45... Ke7 46. Rd5 Kf6 47. Rxb5 g5+ 48. Ke3 a4 49. Rb6+ Kf7) 46. Ke5 Rg3 47. f4 Rg4 48. f5 gxf5 49. exf5 {f6 would kill now.} Rg1 50. f6 {White wants to mate with f7.} Re1+ 51. Kf5 {White threatens f7 and mate.} Rf1+ 52. Ke6 Re1+ 53. Kf7 Rg1 {Wards off Rg2} 54. Ke7 {White mates.} Re1+ 55. Kf8 Rf1 56. f7 Rg1 57. Rd4 Rg2 58. Ke7 Re2+ 59. Kf6 Rxb2 60. Rf4 {Weighted Error Value: White=0.06 (flawless) /Black=0.38.  Mistake:       	White=2     	Black=7      Inaccurate:     	White=1     	Black=1      OK:         	White=19    	Black=15     Best:        	White=5     	Black=3} ({And not} 60. f8=B Rf2+ 61. Ke7 Re2+ 62. Kd8 Rxa2 $11) 1-0

[Event "45th FIDE Olympiad 2024"]
[Site "Budapest"]
[Date "2024.09.12"]
[Round "2.145"]
[White "Kuybokarov, Temur"]
[Black "Mandizha, Farai"]
[Result "1-0"]
[ECO "B90"]
[WhiteElo "2562"]
[BlackElo "2371"]
[Annotator "TA"]
[PlyCount "71"]
[EventDate "2024.09.05"]
[EventType "team-tourn"]
[EventCountry "HUN"]
[SourceTitle "playchess.com"]
[Source "ChessBase"]
[SourceQuality "1"]
[WhiteTeam "Australia"]
[BlackTeam "Zimbabwe"]
[WhiteTeamCountry "AUS"]
[BlackTeamCountry "ZIM"]
[TimeControl "40/5400+30:1800+30"]

{[%evp 12,71,21,0,0,12,43,34,96,95,110,102,113,102,107,108,135,124,110,100,218,197,240,228,281,291,289,293,295,289,308,302,285,258,268,297,272,302,328,274,573,524,760,552,756,775,835,851,29985,29986,29986,29987,29987,29988,29988,29989,29987,29988,29988,29987,29990,29990]} 1. e4 c5 2. Nf3 d6 3. d4 cxd4 4. Nxd4 Nf6 5. Nc3 a6 6. h3 e5 7. Nb3 Be6 8. f4 Qc7 9. g4 {[%cal Bg2g4,Bg4g5][%mdl 32] Strongly threatening g5.} exf4 (9... h6 $14) 10. Bxf4 $16 Nc6 11. g5 Nd7 12. Qd2 {White is more active.} Nce5 {...Nf3+ is the strong threat.} 13. O-O-O Rc8 14. Nd4 Qa5 15. Kb1 Bc4 (15... Rxc3 $16 16. Nxe6 (16. Qxc3 Qxc3 17. bxc3 h6 $18) 16... fxe6) 16. Nb3 Qc7 17. h4 {[%cal Bh3h4,Bh4h5][%mdl 32]} (17. Nd5 $6 Bxd5 18. exd5 g6 $16) 17... b5 18. Bh3 Rd8 19. Nd5 {Dodges Be7} Bxd5 20. exd5 (20. Qxd5 Nb6 21. Qd4 Be7 $16) 20... Be7 21. Nd4 O-O 22. h5 Nc4 23. Qe2 Ndb6 24. Bc1 ({Don't take} 24. Nc6 $6 Nxd5 25. Rxd5 (25. Nxd8 $2 Nxf4 26. Qf3 Nxh3 $19) 25... Qxc6 $16) 24... Nxd5 25. Qe4 Ndb6 (25... Qc5 {was called for.} 26. Bf5 Bxg5 27. Bxh7+ (27. Bxg5 Nxb2 28. Kxb2 Qc3+ 29. Kc1 Qa3+ 30. Kd2 Qb4+ 31. Kd3 Qc4+ 32. Kd2 Qb4+ 33. Kd3 Qc4+ 34. Kd2 Qb4+ $11) 27... Kh8) 26. Bf5 $18 d5 27. Bxh7+ Kh8 28. Qg2 Na4 29. g6 {Hoping for h6.} Ncxb2 {[#]} 30. h6 $1 {White mates.} Bf6 31. hxg7+ Bxg7 32. gxf7 Rxf7 33. Bg6+ Kg8 34. Bxf7+ Qxf7 35. Bxb2 b4 {[#]} 36. Nf5 $1 {Black got outplayed after the opening.   Weighted Error Value: White=0.05 (flawless) /Black=0.59.  Mistake:       	---       	Black=3      Inaccurate:     	---       	Black=3      OK:         	White=10    	Black=5} 1-0

[Event "45th FIDE Olympiad 2024"]
[Site "Budapest"]
[Date "2024.09.12"]
[Round "2.146"]
[White "Makoto, Rodwell"]
[Black "Sardana, Rishi"]
[Result "1-0"]
[ECO "D77"]
[WhiteElo "2311"]
[BlackElo "2477"]
[Annotator "TA"]
[PlyCount "69"]
[EventDate "2024.09.05"]
[EventType "team-tourn"]
[EventCountry "HUN"]
[SourceTitle "playchess.com"]
[Source "ChessBase"]
[SourceQuality "1"]
[WhiteTeam "Zimbabwe"]
[BlackTeam "Australia"]
[WhiteTeamCountry "ZIM"]
[BlackTeamCountry "AUS"]
[TimeControl "40/5400+30:1800+30"]

{[%evp 18,69,20,20,39,0,0,0,0,0,0,-32,9,0,0,3,13,0,81,91,80,79,83,84,106,111,87,91,244,251,437,441,537,507,1054,1045,1161,777,1117,581,585,562,579,586,555,479,672,447,29985,29986,29996,29993,29995,29996]} 1. Nf3 d5 2. g3 g6 3. Bg2 Bg7 4. d4 Nf6 5. O-O O-O 6. c4 dxc4 7. Na3 {[%cal Bb1a3,Ba3c4,Bc4e5][%mdl 32]} c3 8. bxc3 c5 9. Nc4 Nc6 10. Nce5 (10. dxc5 Ne4 11. Bd2 Nxc5 $15) 10... Nd5 11. Bd2 Nxe5 12. Nxe5 Be6 {The position is equal.} 13. e4 Nb6 14. Be3 Nc4 {Prevents f4} 15. Nxc4 Bxc4 16. Re1 Qa5 {[%csl LRa2,LRc3]} 17. e5 Rfd8 (17... Rad8 $11 {keeps the balance.}) 18. Bxb7 $16 Rab8 {[#] ...cxd4 is the strong threat.} 19. Qf3 Qxc3 20. Rec1 Qb2 21. Rab1 Qxa2 22. dxc5 {[%cal Bd4c5,Bc5c6,Bc6c7][%mdl 32]} Bxe5 {[#] Loses the game.} (22... e6 $16 {is a better defense.}) 23. Qe4 $1 $18 {[%csl LRc4,LRe5]} Bc3 ({Wrong is} 23... Bd3 $2 24. Qxe5 Bxb1 25. c6 $18 (25. Qxe7 $2 Re8 $19) (25. Bh6 f6 $18)) (23... Qe2 24. c6 (24. Qxc4 Rd1+ 25. Rxd1 Qxc4 $11) (24. Rxc4 Rxb7 25. Qxb7 Qxc4 $18) 24... Bd5 25. Qxe5 Qf3 26. Qxd5 (26. Bxa7 $2 Qh1#) 26... Qxd5) 24. c6 (24. Rxc3 $2 Bd3 25. Qf4 Bxb1 $19 (25... Qxb1+ $2 26. Rc1 $19)) 24... Bd3 25. Qxe7 {Threatens to win with c7.} Re8 (25... Rf8 $142 26. c7 Rbe8) 26. c7 Rbc8 27. Qc5 Bxb1 28. Qxc3 {[%cal Oe3h6] White wants to mate with Bh6!} ({Inferior is} 28. Rxc3 Be4 29. Bxc8 Qe2 $11) 28... Bf5 29. Bh6 {A strong pair of Bishops.} f6 30. Qxf6 {Black is weak on the dark squares} Qf7 {Prevents Qg7+.} 31. Qd6 Bh3 (31... Bg4 $142 32. Bxc8 Rxc8) 32. f3 {[%cal Og3g4] Hoping for g4!} a5 (32... Be6 $18 33. Ba6 Qd7) 33. g4 {White mates.} Kh8 34. Bxc8 Rxc8 35. Qd8+ {Weighted Error Value: White=0.50/Black=0.70.  Mistake:       	---       	Black=6      Inaccurate:     	White=3     	Black=1      OK:         	White=5     	Black=5      Best:        	White=6     	Black=2      Strong:       	White=1     	---} 1-0